bitfinex-derivatives/quotes_SOLF0:USTF0_20260204
["timestamp","ask_amount","ask_price","bid_price","bid_amount"]
[1770169219896,9.0648,99.429,99.379,28.35942937]
[1770169220105,9.0648,99.429,99.38,19.23989025]
[1770169221107,3.24231665,99.44,99.382,19.25597167]
[1770169221303,3.24231665,99.47,99.401,19.25597167]
[1770169221609,3.24231665,99.47,99.411,19.25479666]
[1770169222208,3.24231665,99.49,99.421,19.25479666]
[1770169222409,3.24231665,99.49,99.431,19.26242097]
[1770169223806,3.24231665,99.5,99.431,19.26242097]
[1770169224110,3.24231665,99.49,99.431,19.26242097]
[1770169225309,3.24231665,99.48,99.431,19.26242097]
[1770169225904,9.0611,99.469,99.415,19.00437712]
[1770169226105,3.24231665,99.46,99.415,19.00437712]
[1770169226301,3.24231665,99.45,99.415,19.00437712]
[1770169227109,9.0621,99.459,99.415,19.00437712]
[1770169228210,3.24231665,99.46,99.415,19.00437712]
[1770169229411,3.24231665,99.49,99.421,19.17247929]
[1770169230710,9.0594,99.488,99.426,9.065]
[1770169230907,3.24231665,99.49,99.431,19.17873523]
[1770169231113,3.24231665,99.52,99.46,3.24231665]
[1770169231313,3.24231665,99.52,99.461,19.17873523]
[1770169231509,0.11100415,99.532,99.461,19.17873523]
[1770169231710,3.24231665,99.53,99.471,19.191273]
[1770169232308,3.24231665,99.53,99.46,401.38]
[1770169232309,3.24231665,99.51,99.461,19.19742432]
[1770169232914,3.24231665,99.5,99.461,19.19742432]
[1770169235817,12.30061665,99.5,99.461,19.19742432]
[1770169238218,9.0592,99.491,99.461,19.19742432]
[1770169238423,9.0592,99.491,99.428,9.0648]
[1770169238424,3.24231665,99.48,99.428,9.0648]
[1770169240417,9.0594,99.488,99.431,16.69287866]
[1770169240814,9.0594,99.488,99.441,16.69287866]
[1770169241026,9.0585,99.498,99.451,16.69287866]
[1770169241418,20.77904221,99.5,99.451,16.69287866]
[1770169241823,3.24231665,99.48,99.42,3.24231665]
[1770169242419,20.77451488,99.49,99.42,3.23778932]
[1770169242822,9.0601,99.48,99.423,9.0652]
[1770169243017,3.23778932,99.44,99.353,141.1148]
[1770169243219,3.23778932,99.43,99.36,3.23778932]
[1770169243523,3.23778932,99.44,99.38,3.23778932]
[1770169243724,17.53672556,99.445,99.38,3.23778932]
[1770169243919,9.0634,99.444,99.391,25.76107866]
[1770169244114,3.23778932,99.44,99.392,16.69287866]
[1770169244326,3.23778932,99.43,99.392,16.69287866]
[1770169244718,9.0648,99.429,99.392,16.69287866]
[1770169244920,3.23778932,99.42,99.392,16.69287866]
[1770169245215,3.23778932,99.42,99.392,12.25741789]
[1770169246024,3.23778932,99.44,99.392,12.25741789]
[1770169246326,3.23778932,99.45,99.392,12.25741789]
[1770169246525,17.53672556,99.462,99.392,12.25741789]
[1770169247824,9.063,99.449,99.393,16.69287866]
[1770169248031,17.53672556,99.477,99.393,16.69287866]
[1770169248226,9.0613,99.468,99.393,16.69287866]
[1770169248428,9.0613,99.468,99.395,16.69287866]
[1770169249322,17.53672556,99.462,99.405,16.69287866]
[1770169251330,9.0627,99.453,99.405,16.69287866]
[1770169251626,19.32109961,99.449,99.389,19.64099253]
[1770169251827,9.0643,99.434,99.389,19.64099253]
[1770169252622,9.0635,99.443,99.391,19.64099253]
[1770169254124,19.32109961,99.445,99.375,19.64099253]
[1770169254335,19.32109961,99.439,99.375,19.64099253]
[1770169254628,9.0652,99.425,99.375,19.64099253]
[1770169255621,9.0663,99.413,99.375,19.64099253]
[1770169256021,9.0671,99.404,99.358,20.45156639]
[1770169257027,141.0182,99.422,99.358,20.45156639]
[1770169257028,19.33248152,99.406,99.358,20.45156639]
[1770169257330,141.043,99.405,99.342,20.45156639]
[1770169257529,9.0694,99.378,99.342,20.45156639]
[1770169258028,9.0694,99.378,99.298,20.45156639]
[1770169258230,9.0694,99.378,99.3,20.45156639]
[1770169259733,9.0694,99.378,99.318,20.45156639]
[1770169259933,9.0704,99.367,99.318,20.45156639]
[1770169260126,141.0695,99.386,99.318,20.45156639]
[1770169260331,141.0695,99.386,99.299,401.38]
[1770169260332,9.0714,99.357,99.301,20.45156639]
[1770169260834,19.33248152,99.366,99.304,20.45156639]
[1770169261337,19.33248152,99.346,99.275,20.45156639]
[1770169261536,9.0735,99.333,99.275,20.45156639]
[1770169262231,141.1111,99.357,99.265,401.46]
[1770169262232,9.0724,99.345,99.277,20.45156639]
[1770169262935,141.1088,99.359,99.28,20.45156639]
[1770169262936,9.0712,99.359,99.28,20.45156639]
[1770169263236,19.33248152,99.356,99.282,20.45156639]
[1770169263425,9.0721,99.349,99.284,20.45156639]
[1770169264036,9.0733,99.336,99.284,20.45156639]
[1770169264831,9.0722,99.348,99.284,20.45156639]
[1770169265737,9.0712,99.359,99.284,20.45156639]
[1770169265936,19.33248152,99.367,99.285,401.58]
[1770169266136,19.33248152,99.367,99.286,20.45156639]
[1770169266336,9.0706,99.366,99.291,20.45156639]
[1770169267738,9.0706,99.366,99.293,20.45156639]
[1770169268838,9.0715,99.355,99.293,20.45156639]
[1770169272734,9.0715,99.355,99.297,20.45156639]
[1770169272933,19.33248152,99.367,99.297,20.45156639]
[1770169273134,19.33248152,99.382,99.303,20.45156639]
[1770169274439,19.33248152,99.382,99.31,20.45156639]
[1770169274440,9.0702,99.37,99.31,20.45156639]
[1770169274745,19.33248152,99.369,99.298,401.68]
[1770169275043,19.33248152,99.369,99.299,20.45156639]
[1770169275740,9.0708,99.364,99.3,20.45156639]
[1770169278343,9.0714,99.357,99.3,20.45156639]
[1770169279140,19.33248152,99.363,99.302,20.45156639]
[1770169279841,188.36031158,99.446,99.306,20.45156639]
[1770169279842,19.33248152,99.396,99.306,20.45156639]
[1770169280046,141.0183,99.422,99.301,141.1896]
[1770169280047,19.33248152,99.412,99.323,20.45156639]
[1770169280237,19.33248152,99.412,99.325,20.45156639]
[1770169280439,9.0678,99.397,99.341,20.45156639]
[1770169281149,9.0669,99.406,99.345,20.15945388]
[1770169281648,9.0673,99.401,99.345,20.15945388]
[1770169283046,9.0673,99.401,99.35,20.15945388]
[1770169283952,9.0682,99.392,99.35,20.15945388]
[1770169289457,9.069,99.383,99.35,20.15945388]
[1770169290553,9.069,99.383,99.334,20.15945388]
[1770169290753,19.17905,99.38,99.319,20.15945388]
[1770169291152,19.17905,99.365,99.319,20.15945388]
[1770169293157,9.0706,99.366,99.319,20.15945388]
[1770169294056,9.0698,99.375,99.319,29.23415388]
[1770169294251,9.0698,99.375,99.32,20.15945388]
[1770169294453,19.17905,99.387,99.32,20.15945388]
[1770169294657,9.0688,99.385,99.331,20.15945388]
[1770169295160,9.0678,99.396,99.337,20.15945388]
[1770169296459,9.0678,99.396,99.348,20.15945388]
[1770169297655,9.0681,99.393,99.348,20.15945388]
[1770169298351,141.0227,99.419,99.331,20.15945388]
[1770169298352,9.0689,99.384,99.331,20.15945388]
[1770169298557,19.17905,99.383,99.331,20.15945388]
[1770169299555,19.17905,99.381,99.331,20.15945388]
[1770169300860,9.0699,99.373,99.331,20.15945388]
[1770169301056,19.17905,99.398,99.331,20.15945388]
[1770169302266,28.24735,99.391,99.335,20.15945388]
[1770169302564,19.17905,99.406,99.335,20.15945388]
[1770169303663,9.0675,99.4,99.345,9.0724]
[1770169304260,9.068,99.394,99.345,9.0724]
[1770169304767,9.068,99.394,99.345,29.23185388]
[1770169304973,19.17905,99.399,99.35,20.15945388]
[1770169305174,9.0672,99.403,99.35,20.15945388]
[1770169305370,19.17905,99.415,99.35,20.15945388]
[1770169306468,19.17905,99.415,99.36,20.15945388]
[1770169306673,19.17905,99.43,99.36,20.15945388]
[1770169307566,19.17905,99.43,99.379,20.15945388]
[1770169310374,22.42031553,99.43,99.379,20.15945388]
[1770169310566,19.17905,99.43,99.381,21.5420769]
[1770169310764,23.58154876,99.46,99.391,21.5420769]
[1770169310965,3.24126553,99.46,99.401,21.5420769]
[1770169311169,9.0611,99.469,99.411,21.5420769]
[1770169311372,29.40138323,99.469,99.411,21.5420769]
[1770169311566,20.34028323,99.468,99.411,21.5420769]
[1770169312379,3.24126553,99.46,99.411,21.5420769]
[1770169313079,140.9042,99.503,99.413,21.5420769]
[1770169313080,3.24126553,99.47,99.413,21.5420769]
[1770169314168,3.24126553,99.47,99.419,9.0657]
[1770169314379,3.24126553,99.47,99.42,21.5420769]
[1770169314773,20.34028323,99.483,99.422,9.0653]
[1770169314774,3.24126553,99.48,99.422,9.0653]
[1770169315072,3.24126553,99.48,99.42,24.78334243]
[1770169315073,3.24126553,99.49,99.431,21.5420769]
[1770169315470,3.24126553,99.49,99.438,9.0639]
[1770169315675,3.24126553,99.49,99.439,21.37291161]
[1770169315869,20.34028323,99.498,99.439,21.37291161]
[1770169316269,20.34028323,99.498,99.438,9.0639]
[1770169316270,3.24126553,99.5,99.441,21.37291161]
[1770169316472,9.0574,99.51,99.441,21.37291161]
[1770169317682,9.0574,99.51,99.445,9.0632]
[1770169317881,9.0574,99.51,99.446,21.37291161]
[1770169318279,21.32962462,99.514,99.447,9.0631]
[1770169318478,21.32962462,99.514,99.448,21.37291161]
[1770169319482,30.38682462,99.512,99.448,21.37291161]
[1770169319683,21.32962462,99.511,99.448,21.37291161]
[1770169320180,21.32962462,99.505,99.448,21.37291161]
[1770169320384,21.32962462,99.505,99.434,21.37291161]
[1770169320881,8.09110784,99.51,99.434,21.37291161]
[1770169320882,21.32962462,99.493,99.434,21.37291161]
[1770169321084,21.32962462,99.478,99.416,21.37291161]
[1770169321279,21.32962462,99.469,99.416,21.37291161]
[1770169321582,8.09110784,99.47,99.355,21.37291161]
[1770169321583,8.09110784,99.43,99.355,21.37291161]
[1770169321771,21.32962462,99.429,99.355,21.37291161]
[1770169322577,8.09110784,99.45,99.369,21.37291161]
[1770169322782,21.32962462,99.449,99.369,21.37291161]
[1770169323680,21.32962462,99.449,99.389,21.37291161]
[1770169324183,21.32962462,99.469,99.389,21.37291161]
[1770169325188,21.32962462,99.469,99.403,21.37291161]
[1770169325685,172.92,99.483,99.385,21.37291161]
[1770169325686,21.32962462,99.466,99.385,21.37291161]
[1770169326687,9.0623,99.456,99.387,21.37291161]
[1770169326879,21.32962462,99.466,99.387,21.37291161]
[1770169327082,21.32962462,99.466,99.384,376.34]
[1770169327083,9.0604,99.477,99.414,21.37291161]
[1770169327480,21.32962462,99.489,99.414,21.37291161]
[1770169327685,21.32962462,99.511,99.427,141.0108]
[1770169327886,21.32962462,99.511,99.428,21.37291161]
[1770169328190,9.0584,99.5,99.428,21.37291161]
[1770169329685,9.0584,99.5,99.421,401.38]
[1770169329686,9.0584,99.5,99.44,30.43661161]
[1770169329985,9.0584,99.5,99.441,21.37291161]
[1770169330386,9.0574,99.51,99.441,21.37291161]
[1770169331586,21.32962462,99.505,99.444,21.37291161]
[1770169332689,21.32962462,99.505,99.446,21.37291161]
[1770169333082,9.0581,99.502,99.446,21.37291161]
[1770169333688,9.0595,99.488,99.429,21.37291161]
[1770169333891,9.0595,99.488,99.428,401.34]
[1770169333892,21.32962462,99.487,99.428,401.34]
[1770169335287,21.32962462,99.508,99.43,21.37291161]
[1770169336486,21.32962462,99.525,99.446,21.37291161]
[1770169336682,21.32962462,99.514,99.446,21.37291161]
[1770169336886,9.0588,99.494,99.446,21.37291161]
[1770169337084,21.32962462,99.504,99.43,21.37291161]
[1770169337789,9.0597,99.485,99.432,21.37291161]
[1770169338182,140.9012,99.505,99.432,21.37291161]
[1770169338183,9.0605,99.476,99.432,21.37291161]
[1770169338993,9.0605,99.476,99.419,9.0656]
[1770169339185,9.0597,99.486,99.424,21.37291161]
[1770169339687,21.32962462,99.488,99.424,21.37291161]
[1770169339894,21.32962462,99.467,99.407,21.37291161]
[1770169340691,9.0622,99.457,99.407,21.37291161]
[1770169343387,21.49648756,99.438,99.373,21.58901693]
[1770169343595,21.49648756,99.431,99.355,21.58901693]
[1770169343795,9.0665,99.411,99.355,21.58901693]
[1770169343990,8.09110784,99.42,99.355,21.58901693]
[1770169343991,21.49648756,99.41,99.355,21.58901693]
[1770169344287,21.49648756,99.41,99.332,21.58901693]
[1770169344488,21.49648756,99.404,99.332,21.58901693]
[1770169344687,8.09110784,99.42,99.332,21.58901693]
[1770169344688,21.49648756,99.399,99.332,21.58901693]
[1770169345285,9.0677,99.398,99.332,21.58901693]
[1770169345992,9.0677,99.398,99.334,21.58901693]
[1770169346192,21.49648756,99.399,99.334,21.58901693]
[1770169346594,21.49648756,99.399,99.337,21.58901693]
[1770169346792,21.49648756,99.425,99.343,21.58901693]
[1770169347687,9.0655,99.422,99.352,9.0717]
[1770169347889,9.0655,99.422,99.353,21.58901693]
[1770169348995,9.0655,99.422,99.361,9.071]
[1770169349186,9.0655,99.422,99.353,21.58901693]
[1770169349187,21.49648756,99.414,99.345,21.58901693]
[1770169349385,21.49648756,99.412,99.345,21.58901693]
[1770169350390,9.0666,99.41,99.348,21.58901693]
[1770169351598,9.0666,99.41,99.35,21.58901693]
[1770169352890,9.0666,99.41,99.351,9.0718]
[1770169353096,8.09110784,99.42,99.338,401.4]
[1770169353097,21.49648756,99.409,99.338,401.4]
[1770169353491,21.49648756,99.409,99.332,21.58901693]
[1770169353998,21.49648756,99.408,99.337,21.58901693]
[1770169354497,21.49648756,99.408,99.344,21.58901693]
[1770169354690,8.09110784,99.44,99.36,21.58901693]
[1770169354893,21.49648756,99.443,99.382,21.58901693]
[1770169355793,140.9709,99.456,99.347,21.58901693]
[1770169355794,21.49648756,99.419,99.347,21.58901693]
[1770169356790,9.067,99.405,99.348,21.58901693]
[1770169357398,21.49648756,99.416,99.348,21.58901693]
[1770169358504,9.0654,99.423,99.371,21.58901693]
[1770169359806,9.0644,99.433,99.373,21.58901693]
[1770169360600,21.49648756,99.439,99.379,21.58901693]
[1770169360897,172.9,99.488,99.351,141.1177]
[1770169360898,21.49648756,99.475,99.401,21.58901693]
[1770169361104,21.49648756,99.475,99.405,21.58901693]
[1770169362108,21.49648756,99.492,99.418,21.58901693]
[1770169363005,21.49648756,99.49,99.418,21.58901693]
[1770169363505,21.49648756,99.484,99.418,21.58901693]
[1770169363705,9.0612,99.469,99.381,21.58901693]
[1770169363904,21.49648756,99.468,99.399,21.58901693]
[1770169364508,21.49648756,99.462,99.4,9.0674]
[1770169364702,21.49648756,99.462,99.399,21.58901693]
[1770169365108,9.0636,99.443,99.382,423.06901693]
[1770169365612,9.0636,99.443,99.384,9.0689]
[1770169365811,9.0636,99.443,99.382,423.06901693]
[1770169366012,9.0636,99.443,99.383,21.58901693]
[1770169366213,9.0636,99.443,99.386,21.58901693]
[1770169367904,30.55908756,99.453,99.387,30.65751693]
[1770169368510,9.0629,99.45,99.388,21.58901693]
[1770169368707,9.0629,99.45,99.392,21.58901693]
[1770169369213,9.0629,99.45,99.393,9.068]
[1770169370208,9.0629,99.45,99.392,21.58901693]
[1770169371012,9.0637,99.442,99.392,21.58901693]
[1770169371912,20.41106307,99.433,99.371,21.32192951]
[1770169372905,9.0653,99.424,99.371,21.32192951]
[1770169373115,20.41106307,99.423,99.371,21.32192951]
[1770169373507,20.41106307,99.421,99.352,21.32192951]
[1770169373918,9.0671,99.403,99.352,21.32192951]
[1770169374411,8.097415,99.43,99.352,21.32192951]
[1770169374412,20.41106307,99.414,99.352,21.32192951]
[1770169374616,20.41106307,99.409,99.352,21.32192951]
[1770169375019,20.41106307,99.406,99.352,21.32192951]
[1770169375213,29.47796307,99.406,99.352,21.32192951]
[1770169376617,20.78126233,99.401,99.338,401.42]
[1770169377114,20.78126233,99.401,99.333,21.74259767]
[1770169377315,9.0686,99.388,99.333,21.74259767]
[1770169378220,9.0692,99.381,99.333,21.74259767]
[1770169381118,20.78126233,99.42,99.336,21.74259767]
[1770169381420,20.78126233,99.42,99.351,141.1181]
[1770169381619,20.78126233,99.42,99.365,21.74259767]
[1770169382224,20.78126233,99.42,99.337,401.52]
[1770169382225,20.78126233,99.408,99.348,21.74259767]
[1770169382524,141.0148,99.425,99.348,21.74259767]
[1770169382525,20.78126233,99.429,99.348,21.74259767]
[1770169383027,141.0313,99.413,99.334,21.74259767]
[1770169383322,141.0191,99.422,99.334,21.74259767]
[1770169383323,20.78126233,99.405,99.334,21.74259767]
[1770169383722,9.0692,99.381,99.334,21.74259767]
[1770169384426,20.78126233,99.4,99.336,21.74259767]
[1770169384927,20.78126233,99.418,99.336,21.74259767]
[1770169385132,9.0664,99.412,99.349,21.74259767]
[1770169385927,9.0655,99.421,99.363,21.74259767]
[1770169386228,20.78126233,99.437,99.363,21.74259767]
[1770169387627,20.78126233,99.437,99.377,21.74259767]
[1770169387827,20.78126233,99.454,99.377,21.74259767]
[1770169388021,173.34,99.469,99.36,8.097415]
[1770169388022,29.84496233,99.441,99.382,21.74259767]
[1770169388227,20.78126233,99.44,99.382,21.74259767]
[1770169388723,9.0643,99.435,99.385,21.74259767]
[1770169391028,140.9703,99.456,99.358,401.56]
[1770169391029,20.78126233,99.429,99.364,21.74259767]
[1770169391725,20.78126233,99.449,99.37,21.74259767]
[1770169391927,20.78126233,99.449,99.371,21.74259767]
[1770169392131,20.78126233,99.437,99.371,21.74259767]
[1770169393024,9.0636,99.442,99.384,21.74259767]
[1770169393830,9.0627,99.452,99.387,21.74259767]
[1770169394633,9.0635,99.444,99.392,21.74259767]
[1770169395429,173.08,99.491,99.372,401.52]
[1770169395430,20.78126233,99.437,99.372,401.52]
[1770169395634,20.78126233,99.437,99.373,21.74259767]
[1770169395831,9.0653,99.424,99.373,21.74259767]
[1770169396834,29.84526233,99.437,99.373,21.74259767]
[1770169397229,9.064,99.437,99.373,21.74259767]
[1770169397431,9.064,99.437,99.362,401.5]
[1770169397432,9.063,99.448,99.382,21.74259767]
[1770169398030,9.0638,99.44,99.385,21.74259767]
[1770169399032,9.0638,99.44,99.389,21.74259767]
[1770169400237,9.0638,99.44,99.391,9.0682]
[1770169400436,20.78126233,99.439,98.739,21.74259767]
[1770169400637,8.097415,99.28,99.107,141.4651]
[1770169400832,9.39005216,99.32,99.201,141.3315]
[1770169401133,8.097415,99.4,99.059,201.22]
[1770169401134,9.39005216,99.298,99.224,77.48694716]
[1770169401335,9.39005216,99.334,99.224,77.48694716]
[1770169401529,91.9,99.372,99.224,77.48694716]
[1770169401530,8.097415,99.32,99.224,77.48694716]
[1770169401730,10.76617224,99.319,99.224,77.48694716]
[1770169401939,10.76617224,99.318,99.224,77.48694716]
[1770169402140,10.76617224,99.317,99.224,77.48694716]
[1770169402339,10.76617224,99.316,99.224,77.48694716]
[1770169402640,8.24619731,99.315,99.224,77.48694716]
[1770169402939,8.24619731,99.314,99.224,77.48694716]
[1770169403138,8.24619731,99.313,99.224,77.48694716]
[1770169403339,8.097415,99.33,99.224,77.48694716]
[1770169403340,8.24619731,99.312,99.224,77.48694716]
[1770169403541,8.24619731,99.311,99.224,77.48694716]
[1770169403741,8.24619731,99.31,99.224,77.48694716]
[1770169404043,8.24619731,99.309,99.224,77.48694716]
[1770169404245,8.24619731,99.308,99.224,77.48694716]
[1770169404440,8.24619731,99.307,99.224,77.48694716]
[1770169404645,2.52034505,99.328,99.224,77.48694716]
[1770169404837,7.89508759,99.327,99.224,77.48694716]
[1770169405038,8.097415,99.35,99.233,77.48694716]
[1770169405238,7.89401143,99.349,99.233,77.48694716]
[1770169405439,8.097415,99.35,99.233,77.48694716]
[1770169406443,8.097415,99.35,99.235,77.48694716]
[1770169408345,8.097415,99.35,99.237,77.48694716]
[1770169410442,8.097415,99.35,99.24,77.48694716]
[1770169412149,8.097415,99.35,99.243,77.48694716]
[1770169414258,8.097415,99.35,99.246,77.48694716]
[1770169414959,8.097415,99.35,99.258,141.2509]
[1770169414960,2.51980535,99.349,99.258,141.2509]
[1770169415160,2.51980535,99.348,99.259,77.48694716]
[1770169415362,10.41381678,99.347,99.26,479.34694716]
[1770169415556,10.41381678,99.346,99.261,77.48694716]
[1770169415756,10.41381678,99.345,99.261,77.48694716]
[1770169415955,10.41381678,99.344,99.261,77.48694716]
[1770169416151,10.41381678,99.343,99.261,77.48694716]
[1770169416453,10.41381678,99.342,99.261,77.48694716]
[1770169416659,10.41381678,99.341,99.263,77.48694716]
[1770169416958,7.89401143,99.34,99.263,77.48694716]
[1770169417160,7.89401143,99.339,99.263,77.48694716]
[1770169417459,7.89401143,99.338,99.263,77.48694716]
[1770169417658,7.89401143,99.337,99.263,77.48694716]
[1770169417851,8.097415,99.35,99.263,77.48694716]
[1770169418055,10.33023495,99.349,99.263,77.48694716]
[1770169418258,10.33023495,99.348,99.263,77.48694716]
[1770169418456,8.097415,99.35,99.263,77.48694716]
[1770169418760,182.8,99.437,99.263,77.48694716]
[1770169418761,2.51908845,99.366,99.263,77.48694716]
[1770169419061,10.32831726,99.365,99.263,77.48694716]
[1770169419363,10.32831726,99.364,99.263,77.48694716]
[1770169419658,8.097415,99.32,99.265,77.48694716]
[1770169419859,8.097415,99.32,99.266,401.88]
[1770169421461,9.0752,99.315,99.265,77.48694716]
[1770169421656,9.0752,99.315,99.266,401.9]
[1770169422470,9.0752,99.315,99.266,479.38694716]
[1770169424860,2.5200536,99.342,99.267,77.48694716]
[1770169425062,7.80341517,99.352,99.267,77.48694716]
[1770169425365,2.51989773,99.359,99.267,77.48694716]
[1770169425566,7.80324788,99.352,99.267,77.48694716]
[1770169425757,2.51989773,99.357,99.267,77.48694716]
[1770169425964,7.80324682,99.352,99.267,77.48694716]
[1770169426160,8.097415,99.36,99.236,141.2821]
[1770169426161,148.92435879,99.351,99.269,77.48694716]
[1770169426367,8.1234606,99.33,99.269,77.48694716]
[1770169427767,9.0743,99.325,99.269,77.48694716]
[1770169430772,141.1677,99.317,99.269,77.48694716]
[1770169431072,141.1677,99.317,99.271,26.48516376]
[1770169431272,141.1677,99.317,99.272,223.5041]
[1770169431462,141.1536,99.327,99.272,223.5041]
[1770169432764,9.0756,99.31,99.272,223.5041]
[1770169432962,141.1536,99.327,99.272,223.5041]
[1770169433168,141.1536,99.327,99.273,37.73782081]
[1770169433370,141.1562,99.325,99.273,37.73782081]
[1770169434760,9.0756,99.31,99.273,37.73782081]
[1770169435264,141.1098,99.358,99.273,37.73782081]
[1770169435265,9.39005216,99.386,99.273,37.73782081]
[1770169435465,10.45502998,99.349,99.273,37.73782081]
[1770169435661,10.45502998,99.348,99.273,37.73782081]
[1770169435870,10.45502998,99.347,99.273,37.73782081]
[1770169436070,7.93539664,99.346,99.273,37.73782081]
[1770169436273,10.45486289,99.345,99.273,37.73782081]
[1770169436472,7.93539664,99.344,99.273,37.73782081]
[1770169436671,7.93539664,99.343,99.273,37.73782081]
[1770169436871,7.93539664,99.342,99.273,37.73782081]
[1770169437071,7.93539664,99.341,99.273,37.73782081]
[1770169437274,7.93539664,99.34,99.273,37.73782081]
[1770169437477,9.0704,99.368,99.273,37.73782081]
[1770169437478,7.93539664,99.339,99.273,37.73782081]
[1770169437675,7.93539664,99.338,99.273,37.73782081]
[1770169437876,7.93539664,99.337,99.273,37.73782081]
[1770169438075,7.93539664,99.336,99.273,37.73782081]
[1770169438276,10.45486473,99.335,99.273,37.73782081]
[1770169438472,10.45486473,99.334,99.273,37.73782081]
[1770169438677,7.93539664,99.333,99.273,37.73782081]
[1770169438976,7.93539664,99.332,99.273,37.73782081]
[1770169439275,10.45486555,99.331,99.273,37.73782081]
[1770169439474,10.45486555,99.33,99.273,37.73782081]
[1770169439674,10.45486555,99.329,99.273,37.73782081]
[1770169439876,10.45486555,99.328,99.273,37.73782081]
[1770169440072,10.45486555,99.327,99.273,37.73782081]
[1770169440268,9.39005216,99.357,99.273,37.73782081]
[1770169440468,54.1234606,99.37,99.273,37.73782081]
[1770169440469,10.48220408,99.356,99.273,37.73782081]
[1770169440670,8.1234606,99.35,99.273,37.73782081]
[1770169440868,9.39005216,99.372,99.273,37.73782081]
[1770169441067,9.39005216,99.377,99.273,37.73782081]
[1770169441273,9.39005216,99.374,99.284,9.0779]
[1770169441471,8.1234606,99.38,99.285,27.60108794]
[1770169441671,8.1234606,99.38,99.269,141.2353]
[1770169441672,8.1234606,99.38,99.287,27.60108794]
[1770169443278,9.39005216,99.377,99.287,27.60108794]
[1770169444180,9.39005216,99.37,99.287,27.60108794]
[1770169445284,9.39005216,99.36,99.287,27.60108794]
[1770169445480,9.39005216,99.361,99.287,27.60108794]
[1770169446178,9.39005216,99.375,99.288,401.86]
[1770169446482,9.39005216,99.375,99.289,27.69082662]
[1770169446679,9.39005216,99.372,99.289,27.69082662]
[1770169447175,8.1234606,99.38,99.289,27.69082662]
[1770169447176,9.39005216,99.371,99.289,27.69082662]
[1770169447380,9.39005216,99.371,99.291,27.68885746]
[1770169447782,9.39005216,99.371,99.298,27.68885746]
[1770169448785,9.39005216,99.372,99.298,27.68885746]
[1770169449286,9.39005216,99.371,99.301,27.69276924]
[1770169450080,9.39005216,99.371,99.303,27.70654404]
[1770169450483,3.24657078,99.35,99.303,27.70654404]
[1770169451087,3.24657078,99.33,99.282,27.71046105]
[1770169451291,3.24657078,99.32,99.283,401.84]
[1770169451482,3.24657078,99.32,99.284,27.6999717]
[1770169451791,3.24657078,99.34,99.284,27.6999717]
[1770169452290,10.31300139,99.339,99.286,27.6999717]
[1770169452486,19.70305355,99.338,99.286,27.6999717]
[1770169452682,3.24657078,99.33,99.286,27.6999717]
[1770169452881,7.79358777,99.329,99.286,27.6999717]
[1770169453086,7.79358777,99.328,99.286,27.6999717]
[1770169453288,7.79358777,99.327,99.291,27.70365489]
[1770169453489,7.79358777,99.326,99.291,27.70365489]
[1770169453688,3.24657078,99.33,99.291,27.70365489]
[1770169453689,7.79358777,99.325,99.291,27.70365489]
[1770169453888,7.79358777,99.324,99.291,27.70365489]
[1770169454083,7.79358777,99.323,99.291,27.70365489]
[1770169454295,7.79358777,99.322,99.292,36.7845137]
[1770169454592,7.79358777,99.321,99.292,36.7845137]
[1770169454788,7.79358777,99.32,99.293,27.71090756]
[1770169454989,7.79358777,99.319,99.293,27.71090756]
[1770169455186,7.79358777,99.318,99.293,27.71090756]
[1770169455389,7.79358777,99.317,99.293,27.71090756]
[1770169455693,3.24657078,99.33,99.293,27.71090756]
[1770169455887,9.40645988,99.375,99.301,27.71478023]
[1770169456094,3.24657078,99.36,99.301,27.71478023]
[1770169456292,3.24657078,99.37,99.301,27.71478023]
[1770169456497,2.51891303,99.369,99.303,27.71908211]
[1770169456794,2.51891303,99.368,99.303,27.71908211]
[1770169456994,2.51891303,99.367,99.303,27.71908211]
[1770169457196,3.24657078,99.37,99.303,27.71908211]
[1770169457395,2.51891284,99.369,99.303,27.71908211]
[1770169457595,2.51891284,99.368,99.303,27.71908211]
[1770169457792,2.51891284,99.367,99.317,36.96210638]
[1770169458096,3.24657078,99.36,99.318,27.88710638]
[1770169458288,3.24657078,99.36,99.321,36.96170638]
[1770169459795,3.24657078,99.35,99.321,36.96170638]
[1770169461592,12.54194651,99.401,99.29,3.24657078]
[1770169461593,3.24657078,99.33,99.29,27.86335264]
[1770169461996,3.24657078,99.33,99.291,401.82]
[1770169462197,3.24657078,99.32,99.29,27.86335264]
[1770169462402,3.24657078,99.32,99.291,401.82]
[1770169463800,141.1047,99.362,99.229,141.2912]
[1770169463801,3.24657078,99.3,99.242,27.82378476]
[1770169463991,3.24657078,99.29,99.244,27.82378476]